fUSD/lending_fUSD_20240709
["ID","MTS","AMOUNT","RATE_DAILY","PERIOD"]
[331550821,1720488642681,-407.57437279,0.00036808,10]
[331550822,1720488642690,-151.0,0.00036902,7]
[331550823,1720488642699,-151.0,0.00036902,7]
[331550824,1720488642709,-151.0,0.00036902,7]
[331550825,1720488642719,-151.0,0.00036902,7]
[331550826,1720488642728,-151.0,0.00036902,7]
[331550827,1720488642740,-277.696809,0.00036902,7]
[331550828,1720488642749,-277.696809,0.00036902,7]
[331550829,1720488642759,-801.026445,0.00036902,7]
[331550830,1720488642768,-801.026445,0.00036902,7]
[331550831,1720488642777,-151.0,0.00036902,7]
[331550832,1720488642787,-151.0,0.00036902,7]
[331550833,1720488642796,-151.0,0.00036902,7]
[331550834,1720488642805,-151.0,0.00036902,7]
[331550835,1720488642815,-151.0,0.00036902,7]
[331550836,1720488642824,-151.0,0.00036902,7]
[331550837,1720488642833,-5000.0,0.00036902,120]
[331550838,1720488642842,-516.0,0.00036902,30]
[331550839,1720488642852,-15751.11533176,0.00036902,120]
[331550840,1720488642862,-160.0,0.00036902,30]
[331550841,1720488642871,-191.0,0.00036902,30]
[331550842,1720488642880,-3266.0,0.00036902,120]
[331550843,1720488642889,-2365.77488158,0.00036902,120]
[331550844,1720488642899,-2000.98556466,0.00036902,120]
[331550845,1720488642908,-962.63873969,0.00036902,31]
[331550846,1720488642918,-843.0,0.00036902,30]
[331550847,1720488642933,-1238.0,0.00036902,38]
[331550848,1720488642942,-1338.0,0.00036902,38]
[331550849,1720488642952,-1588.0,0.00036902,45]
[331550850,1720488642962,-2000.0,0.00036902,50]
[331550851,1720488642971,-1388.0,0.00036902,45]
[331550852,1720488642983,-1586.0,0.00036902,36]
[331550853,1720488642993,-90000.0,0.00036902,2]
[331550854,1720488643003,-4493.13311542,0.00036902,120]
[331550855,1720488643012,-5000.0,0.00036902,30]
[331550856,1720488643021,-1287.38681076,0.00036902,120]
[331550857,1720488643031,-151.070907,0.00037148,90]
[331550858,1720488643040,-150.0,0.00037178,120]
[331550859,1720488643049,-1000.0,0.00037356,10]
[331550860,1720488643059,-150.0,0.0003737,2]
[331550861,1720488643068,-151.0,0.00037401,2]
[331550862,1720488643078,-507.6073686,0.0003741,15]
[331550863,1720488643087,-641.46653887,0.0003741,15]
[331550864,1720488643097,-150.0,0.00037447,120]
[331550865,1720488643106,-151.070907,0.00037448,87]
[331550866,1720488643116,-10015.46501181,0.000375,60]
[331550867,1720488643125,-1571.66468009,0.0003763,10]
[331550868,1720488643134,-528.8,0.00037643,2]
[331550869,1720488643144,-151.070907,0.00037748,86]
[331550870,1720488643153,-151.070907,0.00037748,100]
[331550871,1720488643163,-152.0,0.0003786,5]
[331550872,1720488643172,-617.8,0.00038,30]
[331550873,1720488643181,-617.8,0.00038,30]
[331550874,1720488643190,-1000.0,0.00038,120]
[331550875,1720488643200,-1288.02892387,0.00038,120]
[331550876,1720488643210,-1108.0,0.00038,45]
[331550877,1720488643219,-153.53,0.00038,31]
[331550878,1720488643228,-153.53,0.00038,31]
[331550879,1720488643241,-153.53,0.00038,31]
[331550880,1720488643250,-153.53,0.00038,31]
[331550881,1720488643260,-153.53,0.00038,31]
[331550882,1720488643269,-153.53,0.00038,31]
[331550883,1720488643279,-153.53,0.00038,31]
[331550884,1720488643289,-153.53,0.00038,31]
[331550885,1720488643298,-174.36305197,0.00038,90]
[331550886,1720488643310,-579.36,0.00038025,2]
[331550887,1720488643320,-302.0,0.00038029,4]
[331550888,1720488643330,-150.0,0.00038319,120]
[331550889,1720488643339,-1000.0,0.00038452,10]
[331550890,1720488643349,-1000.0,0.00038498,31]
[331550891,1720488643358,-150.0,0.0003864,120]
[331550892,1720488643368,-604.0,0.00038668,7]
[331550893,1720488643377,-151.070907,0.00038748,87]
[331550894,1720488643386,-151.070907,0.00038748,101]
[331550895,1720488643400,-150.0,0.00038761,120]
[331550896,1720488643410,-2000.0,0.00038805,2]
[331550897,1720488643419,-2000.0,0.00038805,2]
[331550898,1720488643428,-2000.0,0.00038805,2]
[331550899,1720488643439,-2000.0,0.00038805,2]
[331550900,1720488643449,-2000.0,0.00038805,2]
[331550902,1720488643459,-516.0,0.000389,13]
[331550903,1720488643469,-3726.9105239,0.00038946,2]
[331550904,1720488643478,-13379.7195643,0.00038946,2]
[331550905,1720488643493,-63177.7446757,0.00038973,2]
[331550906,1720488643503,-50560.604587,0.00038973,2]
[331550907,1720488643512,-37943.4644982,0.00038973,2]
[331550908,1720488643522,-25326.3244094,0.00038973,2]
[331550909,1720488643533,-12709.1843206,0.00038973,2]
[331550910,1720488643543,-2982.6143731,0.00038973,2]
[331550911,1720488643551,-2238.3182223,0.00038973,2]
[331550912,1720488643560,-1494.0220715,0.00038973,2]
[331550913,1720488643570,-749.7259207,0.00038973,2]
[331550916,1720488643579,-10707.6742585,0.00038973,2]
[331550918,1720488643588,-8035.6289527,0.00038973,2]
[331550920,1720488643597,-5363.5836469,0.00038973,2]
[331550922,1720488643606,-2691.5383411,0.00038973,2]
[331550924,1720488643615,-151.0,0.00038973,14]
[331550926,1720488643624,-355.096105,0.00038973,14]
[331550927,1720488643633,-355.096105,0.00038973,14]
[331550928,1720488643643,-151.0,0.00038973,7]
[331550929,1720488643652,-217.946347,0.00038973,14]
[331550930,1720488643661,-274.123714,0.00038973,14]
[331550932,1720488643671,-151.0,0.00038973,14]
[331550933,1720488643681,-166.249795,0.00038973,14]
[331550934,1720488643693,-151.0,0.00038973,14]
[331550935,1720488643703,-151.0,0.00038973,14]
[331550936,1720488643712,-188.397145,0.00038973,14]
[331550937,1720488643722,-882.83593,0.00038973,14]
[331550938,1720488643732,-188.397145,0.00038973,14]
[331550939,1720488643742,-151.0,0.00038973,14]
[331550940,1720488643751,-882.83593,0.00038973,14]
[331550941,1720488643762,-243.712136,0.00038973,14]
[331550942,1720488643771,-151.0,0.00038973,14]
[331550943,1720488643780,-151.0,0.00038973,7]
[331550944,1720488643790,-151.0,0.00038973,14]
[331550945,1720488643799,-151.0,0.00038973,14]
[331550946,1720488643808,-200.563966,0.00038973,14]
[331550947,1720488643818,-151.0,0.00038973,14]
[331550948,1720488643827,-200.563966,0.00038973,14]
[331550949,1720488643836,-151.0,0.00038973,14]
[331550950,1720488643845,-151.0,0.00038973,14]
[331550951,1720488643854,-2599.01290099,0.00038989,39]
[331550952,1720488643863,-151.0,0.00038999,14]
[331550953,1720488643872,-151.0,0.00038999,14]
[331550954,1720488643881,-151.0,0.00038999,14]
[331550955,1720488643890,-277.696809,0.00038999,14]
[331550956,1720488643900,-277.696809,0.00038999,14]
[331550957,1720488643909,-801.026445,0.00038999,14]
[331550958,1720488643918,-801.026445,0.00038999,14]
[331550959,1720488643927,-151.0,0.00038999,14]
[331550960,1720488643936,-151.0,0.00038999,14]
[331550961,1720488643945,-151.0,0.00038999,14]
[331550962,1720488643955,-236.313825,0.00038999,14]
[331550963,1720488643964,-151.0,0.00038999,14]
[331550964,1720488643974,-151.0,0.00038999,14]
[331550965,1720488643984,-355.096105,0.00038999,14]
[331550966,1720488643994,-355.096105,0.00038999,14]
[331550967,1720488644003,-151.0,0.00038999,7]
[331550968,1720488644012,-253.496462,0.00038999,14]
[331550969,1720488644021,-151.0,0.00038999,14]
[331550970,1720488644031,-188.397145,0.00038999,14]
[331550971,1720488644040,-188.397145,0.00038999,14]
[331550972,1720488644050,-151.0,0.00038999,14]
[331550973,1720488644059,-151.0,0.00038999,14]
[331550974,1720488644068,-1080534.81725241,0.00038999,15]
[331550975,1720488644088,-73729.23984359,0.00038999,15]
[331550976,1720488644097,-8067.02401823,0.00039,3]
[331550977,1720488644107,-612339.74815187,0.00039,15]
[331550978,1720488644118,-1288.14338783,0.00039,15]
[331550979,1720488644130,-1703.41591,0.00039,15]
[331550980,1720488644141,-308.66866659,0.00039,15]
[331550981,1720488644152,-3426.85472011,0.00039,15]
[331550982,1720488644172,-308.951889,0.00020274,2]
[331550983,1720488644181,-361.36140716,0.00039,15]
[331550984,1720488644193,-800.598461,0.00039,15]
[331550985,1720488644204,-442.27892582,0.00039,15]
[331550986,1720488644215,-11287.88232983,0.00039,15]
[331550987,1720488644281,-646.85,0.00014944,2]
[331550988,1720488644291,-308.951889,0.00021096,2]
[331550989,1720488644300,-89.32757279,0.00039,15]
[331550990,1720488644313,-3150.436,0.00039,15]
[331550991,1720488644324,-525.0762784,0.00039,15]
[331550992,1720488644367,-256.62236691,0.00039,15]
[331550994,1720488644461,-166.78,0.00020664,2]
[331550995,1720488644471,-195.4433086,0.00039,15]
[331550996,1720488644498,-4910.73445345,0.00039,15]
[331550997,1720488644509,-6545.89975909,0.00039,15]
[331550998,1720488645781,-302.0,0.00039,15]
[331551015,1720488646744,-620.458,0.00020664,2]
[331551018,1720488646754,-21.05992662,0.00034042,2]
[331551021,1720488646766,-228.94007338,0.00034042,2]
[331551023,1720488646775,-416.05992662,0.0003822,5]
[331551040,1720488646974,-155.65965955,0.00013574,2]
[331551041,1720488646985,-286.26028453,0.0003822,5]
[331551042,1720488647000,-1232.34172291,0.0003822,5]
[331551043,1720488647010,-151.0,0.00038973,14]
[331551044,1720488647020,-5989.63281189,0.00039,15]
[331551045,1720488647031,-2176.89212476,0.00039,15]
[331551046,1720488647698,-316.01403212,0.00039,15]
[331551047,1720488647710,-75006.84569554,0.00039,15]
[331551068,1720488898431,2380.58797658,0.00011199,2]
[331551072,1720488916728,1016.85638012,0.00011199,2]
[331551075,1720488962572,722.72051386,0.00011199,2]
[331551076,1720489017228,530.0541805,0.00011199,2]
[331551079,1720489040318,569.8312998,0.00011199,2]
[331551083,1720489070614,255.0312963,0.00011199,2]
[331551084,1720489073231,508.04668612,0.00011199,2]
[331551085,1720489088980,218.70843062,0.00011199,2]
[331551086,1720489089073,190.49443095,0.00011199,2]
[331551087,1720489094904,155.7043146,0.00011199,2]
[331551088,1720489098288,588.84846398,0.00011199,2]
[331551089,1720489116195,264.80751118,0.00011199,2]
[331551090,1720489160152,254.98280168,0.00011199,2]
[331551092,1720489180719,304.65330378,0.00011199,2]
[331551094,1720489237960,650.07303847,0.00011199,2]
[331551095,1720489361686,155.27013329,0.00012273,2]
[331551106,1720489538157,80.51291517,0.00011199,2]
[331551107,1720489538179,250.64106704,0.00011199,2]
[331551108,1720489538200,250.64106704,0.00011199,2]
[331551109,1720489538221,250.64106704,0.00011199,2]
[331551110,1720489538243,250.64106704,0.00011199,2]
[331551111,1720489538264,250.64106704,0.00011199,2]
[331551112,1720489538287,250.64106704,0.00011199,2]
[331551113,1720489538307,250.64106704,0.00011199,2]
[331551114,1720489538327,250.64106704,0.00011199,2]
[331551115,1720489538347,250.64106704,0.00011199,2]
[331551116,1720489538368,250.64106704,0.00011199,2]
[331551117,1720489538391,2811.93776056,0.00011199,2]
[331551119,1720489551600,547.28090995,0.00011199,2]
[331551123,1720489629744,304.65330378,0.00011199,2]
[331551126,1720489704959,534.35024517,0.00011199,2]
[331551128,1720489741196,297.13354672,0.00011199,2]
[331551131,1720489831870,-235.78304846,0.00012302,2]
[331551132,1720489831881,-207.63218924,0.00013472,2]
[331551133,1720489832674,-97.18972797,0.00013472,2]
[331551134,1720489832684,-240.0194,0.00013474,2]
[331551135,1720489832694,-206.43,0.00013478,2]
[331551136,1720489832705,-172.43,0.00013503,2]
[331551138,1720489832715,-2685.08900873,0.00013516,2]
[331551140,1720489832727,-513.45,0.00013516,2]
[331551142,1720489832740,-924.62918205,0.00013516,2]
[331551144,1720489832749,-184.90100332,0.00013543,2]
[331551146,1720489832758,-296.41699653,0.00013543,2]
[331551148,1720489832767,-665.12590124,0.00013566,2]
[331551150,1720489832779,-803.57409876,0.00013566,2]
[331551151,1720489832788,-369.60367917,0.00013574,2]
[331551152,1720489832800,-298.78,0.00013674,2]
[331551153,1720489832809,-703.76,0.00013699,2]
[331551154,1720489832819,-250.0,0.00013699,2]
[331551155,1720489832829,-1725.3,0.0001378,2]
[331551156,1720489832838,-1347.85,0.0001378,2]
[331551157,1720489832848,-499.99,0.0001378,2]
[331551158,1720489832858,-160.39965838,0.0001379,2]
[331551159,1720489832867,-2312.67632946,0.0001379,2]
[331551160,1720489832876,-3201.71370135,0.00013799,2]
[331551161,1720489832885,-961.6061,0.000138,2]
[331551162,1720489832895,-430.208,0.000138,2]
[331551163,1720489832905,-1381.69,0.000138,2]
[331551164,1720489832914,-1000.0,0.00013833,2]
[331551165,1720489832923,-182571.08382102,0.0001387,2]
[331551166,1720489832932,-2305.7,0.0001387,2]
[331551167,1720489832941,-2305.7,0.0001387,2]
[331551168,1720489832951,-2305.7,0.0001387,2]
[331551169,1720489832960,-2305.7,0.0001387,2]
[331551170,1720489832970,-247478.02552269,0.0001388,2]
[331551171,1720489832982,-30663.603838,0.0001388,2]
[331551183,1720489837755,-367.1890923,0.00013128,2]
[331551184,1720489837766,-3940.136815,0.0001388,2]
[331551185,1720489837778,-646.45676971,0.0001388,2]
[331551186,1720489837790,-14252.48389861,0.0001388,2]
[331551187,1720489837801,-2305.7,0.0001388,2]
[331551188,1720489837814,-156.08426103,0.00013889,2]
[331551189,1720489837834,-7500.0,0.000139,2]
[331551190,1720489837848,-209.54583652,0.000139,2]
[331551191,1720489837859,-739.04929799,0.000139,2]
[331551192,1720489837870,-193.9876922,0.000139,2]
[331551193,1720489837879,-277.58574786,0.00013989,2]
[331551194,1720489837890,-234.56794436,0.00013999,2]
[331551195,1720489837900,-457.58445803,0.00013999,2]
[331551196,1720489837911,-634.2647756,0.00013999,2]
[331551197,1720489837922,-809.43922271,0.00013999,5]
[331551198,1720489837932,-592636.47903519,0.00014,2]
[331551199,1720489837953,-995.36520928,0.00014,2]
[331551200,1720489837965,-1839.93992941,0.00014,2]
[331551201,1720489838112,-2208.23057587,0.00014,2]
[331551202,1720489838125,-1161.22,0.00014,2]
[331551271,1720489839734,-396.05309653,0.00014,2]
[331551275,1720489839751,-763.57186585,0.00014,2]
[331551277,1720489839763,-95942.73161476,0.00014,2]
[331551279,1720489839775,-3765.4895204,0.00014,2]
[331551280,1720489839787,-573.37954002,0.00014,2]
[331551283,1720489839930,-525.78909216,0.00014,2]
[331551284,1720489839942,-2809.89847193,0.00014,2]
[331551285,1720489839955,-35938.50797676,0.00014,2]
[331551286,1720489839967,-928.39555182,0.00014,2]
[331551287,1720489839980,-57105.07442558,0.00014,2]
[331551288,1720489839998,-295011.3629706,0.00014,2]
[331551289,1720489840011,-2074.03602452,0.00014,2]
[331551290,1720489840023,-3888.49741325,0.00014,2]
[331551291,1720489840121,-6359.62511263,0.00014,2]
[331551293,1720489840133,-857.69234347,0.00014,2]
[331551346,1720489842977,-843.23755926,0.00014,2]
[331551347,1720489842988,-544.30064769,0.00014,2]
[331551355,1720489843691,-6319.58947999,0.00014,2]
[331551358,1720489846256,-1082.16293103,0.00014,2]
[331551359,1720489846268,-293.8822788,0.00014,2]
[331551360,1720489846280,-313.99159286,0.00014,2]
[331551361,1720489846292,-747.54487454,0.00014,2]
[331551362,1720489846442,-6134.45000001,0.00014,2]
[331551363,1720489846454,-6355.2822566,0.00014,2]
[331551364,1720489846466,-441.48617293,0.00014,2]
[331551367,1720490411090,500.74,0.00027,120]
[331551392,1720491034633,-301.02081451,0.00013343,2]
[331551393,1720491034645,-50.60918549,0.00013343,2]
[331551394,1720491034654,-515.0,0.00013448,2]
[331551395,1720491034663,-624.9314,0.000138,2]
[331551396,1720491034672,-3387.20456374,0.000138,2]
[331551397,1720491034683,-408.85640308,0.000138,2]
[331551398,1720491034694,-1240.78981057,0.000138,2]
[331551400,1720491037997,-17426.81362261,0.000138,2]
[331551401,1720491038007,-2881.54233117,0.000138,2]
[331551402,1720491038016,-1218.94440117,0.000138,2]
[331551403,1720491038025,-417.93936495,0.00013839,2]
[331551404,1720491038034,-809.43922271,0.00013879,5]
[331551405,1720491038043,-41741.63608817,0.000139,2]
[331551406,1720491038054,-175837.39141183,0.000139,2]
[331551407,1720491038063,-3384.0569,0.000139,2]
[331551408,1720491038073,-3761.553,0.000139,2]
[331551409,1720491038082,-2023.59178826,0.000139,2]
[331551410,1720491038092,-168.57974322,0.000139,2]
[331551411,1720491038101,-198.36196005,0.000139,2]
[331551412,1720491038111,-7500.0,0.000139,2]
[331551413,1720491038120,-193.9876922,0.000139,2]
[331551414,1720491038130,-739.04929799,0.000139,2]
[331551415,1720491038139,-332.15190155,0.000139,2]
[331551416,1720491038149,-209.54583652,0.000139,2]
[331551417,1720491038158,-1586.15,0.000139,2]
[331551418,1720491038167,-5191.11,0.000139,2]
[331551419,1720491038176,-1218.94440118,0.000139,2]
[331551420,1720491038186,-461.14,0.0001399,2]
[331551421,1720491038195,-1084.18203587,0.00013999,5]
[331551422,1720491038209,-1084.18203587,0.00013999,5]
[331551423,1720491038218,-1084.18203586,0.00013999,5]
[331551424,1720491038227,-299.63848959,0.00014,2]
[331551425,1720491038239,-620406.7721701,0.00014,2]
[331551426,1720491038251,-11737.32090486,0.00014,2]
[331551427,1720491038263,-484.29211093,0.00014,2]
[331551428,1720491038287,-479.56603185,0.000139,2]
[331551429,1720491038297,-474.30309172,0.00014,2]
[331551430,1720491038308,-25218.44309019,0.00014,2]
[331551564,1720491040012,-6025.19278663,0.00014,2]
[331551566,1720491040024,-684.95978183,0.00014,2]
[331551609,1720491040408,-1811.90938064,0.00014,2]
[331551611,1720491040419,-1983.57,0.00014,2]
[331551613,1720491040430,-605.43999999,0.00014,2]
[331551761,1720491042394,-437.87272521,0.00014,2]
[331551872,1720491043311,-44781.60921649,0.00014,2]
[331551891,1720491043478,-10577.893326,0.00014,2]
[331551893,1720491043490,-645.0,0.00014,2]
[331551895,1720491043501,-3680.30187106,0.00014,2]
[331551897,1720491043512,-29031.35961047,0.00014,2]
[331551943,1720491047228,-221.58,0.0001389,2]
[331551944,1720491047237,-457.58445803,0.00013999,2]
[331551945,1720491047247,-234.56794436,0.00013999,2]
[331551946,1720491047256,-455251.00945543,0.00014,2]
[331551947,1720491047268,-6003.53070359,0.00014,2]
[331551987,1720491825986,1070.97,0.00016511,30]
[331551993,1720492232220,-412.7,0.00012893,2]
[331551994,1720492232229,-37.3,0.00013736,2]
[331551999,1720492232665,-12766.97127505,0.00013736,2]
[331552001,1720492232676,-417.93936495,0.00013756,2]
[331552003,1720492232686,-28224.13034219,0.000138,2]
[331552015,1720492238244,-510.59486603,0.00013759,2]
[331552016,1720492238254,-72652.79335781,0.000138,2]
[331552017,1720492238264,-409.23229485,0.00013834,2]
[331552018,1720492238274,-166.5997706,0.000139,2]
[331552019,1720492238292,-204.8573,0.000139,2]
[331552020,1720492238302,-2593.38809808,0.000139,2]
[331552021,1720492238312,-7500.0,0.000139,2]
[331552022,1720492238322,-2024.57483051,0.000139,2]
[331552023,1720492238332,-160.39965838,0.000139,2]
[331552024,1720492238343,-187.26252945,0.000139,2]
[331552025,1720492238353,-158.68956804,0.000139,2]
[331552026,1720492238363,-332.1519015,0.000139,2]
[331552027,1720492238372,-164.19756105,0.00013999,2]
[331552028,1720492238382,-320.30912063,0.00013999,2]
[331552029,1720492238392,-533021.72131317,0.00014,2]
[331552030,1720492238406,-1356.00596654,0.00014,2]
[331552031,1720492238423,-534.02114835,0.00014,2]
[331552032,1720492238435,-3742.70217563,0.00014,2]
[331552033,1720492238446,-360.86093302,0.00014,2]
[331552173,1720492242644,-455.10000001,0.00014,2]
[331552174,1720492242656,-1865.64195487,0.00014,2]
[331552203,1720492246811,-319.7106879,0.000139,2]
[331552204,1720492246821,-11351.4893121,0.00014,2]
[331552205,1720492247006,-16580.56516095,0.00014,2]
[331552206,1720492247019,-61859.1600811,0.00014,2]
[331552207,1720492309399,3908.0,0.00027,120]
[331552215,1720492921020,3443.8112197,0.00011199,2]
[331552218,1720493405353,155.83933176,0.00011199,2]
[331552228,1720493438474,-206.91137924,0.00012273,2]
[331552229,1720493438485,-558.03983531,0.00012302,2]
[331552231,1720493438494,-947.71338398,0.00012302,2]
[331552233,1720493438503,-211.67345766,0.00012314,2]
[331552235,1720493438512,-157.53,0.00012492,2]
[331552237,1720493438522,-1000.0,0.00012527,2]
[331552239,1720493438532,-448.29,0.00012562,2]
[331552241,1720493438541,-150.0,0.000126,2]
[331552243,1720493438551,-150.0,0.00012654,2]
[331552244,1720493438560,-150.0,0.00012708,2]
[331552245,1720493438570,-150.0,0.00012762,2]
[331552246,1720493438580,-150.0,0.00012815,2]
[331552247,1720493438589,-150.0,0.00012869,2]
[331552248,1720493438599,-150.0,0.00012923,2]
[331552249,1720493438608,-150.0,0.00012977,2]
[331552250,1720493438618,-150.0,0.00013031,2]
[331552251,1720493438627,-150.0,0.00013085,2]
[331552252,1720493438637,-297.92202383,0.00013128,2]
[331552253,1720493438647,-277.58574786,0.00013128,2]
[331552254,1720493438656,-150.0,0.00013138,2]
[331552255,1720493438666,-150.0,0.00013192,2]
[331552256,1720493438676,-150.0,0.00013246,2]
[331552257,1720493438686,-150.0,0.000133,2]
[331552258,1720493438695,-150.0,0.00013354,2]
[331552259,1720493438705,-150.0,0.00013408,2]
[331552260,1720493438715,-22014.1202165,0.0001342,2]
[331552261,1720493438780,-1885.8797835,0.0001342,2]
[331552262,1720493438789,-150.0,0.00013462,2]
[331552263,1720493438800,-150.0,0.00013515,2]
[331552264,1720493438809,-156.07276861,0.00013516,2]
[331552265,1720493438819,-510.59486603,0.00013543,2]
[331552266,1720493438829,-721.02350962,0.00013543,2]
[331552267,1720493438838,-150.0,0.00013569,2]
[331552268,1720493438847,-155.58133115,0.00013574,2]
[331552269,1720493438857,-5204.24120352,0.0001358,2]
[331552270,1720493438868,-150.0,0.00013623,2]
[331552271,1720493438878,-150.0,0.00013677,2]
[331552272,1720493438888,-35972.03,0.00013699,2]
[331552273,1720493438897,-250.0,0.00013699,2]
[331552274,1720493438907,-417.93936495,0.00013724,2]
[331552275,1720493438918,-150.0,0.00013731,2]
[331552276,1720493438931,-12775.20479459,0.00013736,2]
[331552277,1720493438941,-200.0,0.00013762,2]
[331552278,1720493438951,-250.0,0.00013773,2]
[331552279,1720493438962,-150.0,0.00013785,2]
[331552280,1720493438972,-150.0,0.00013838,2]
[331552281,1720493438982,-150.0,0.00013863,2]
[331552282,1720493438992,-23367.57429606,0.0001388,2]
[331552283,1720493439002,-150.0,0.00013892,2]
[331552284,1720493439011,-166.5997706,0.000139,2]
[331552285,1720493439022,-204.8573,0.000139,2]
[331552286,1720493439032,-2593.38809808,0.000139,2]
[331552287,1720493439042,-7500.0,0.000139,2]
[331552288,1720493439052,-72652.7934,0.000139,2]
[331552289,1720493439062,-16196.59864408,0.000139,2]
[331552290,1720493439072,-419.0368082,0.000139,2]
[331552291,1720493439082,-793.44784016,0.000139,2]
[331552292,1720493439092,-150.0,0.00013946,2]
[331552293,1720493439101,-235.19869256,0.00013999,2]
[331552294,1720493439111,-164.19756105,0.00013999,2]
[331552296,1720493439121,-320.30912063,0.00013999,2]
[331552298,1720493439130,-509373.4428603,0.00014,2]
[331552300,1720493439143,-349758.31553359,0.00014,2]
[331552302,1720493439155,-1664.33599999,0.00014,2]
[331552304,1720493440859,-852.60284085,0.00014,2]
[331552305,1720493440871,-3141.4554096,0.00014,2]
[331552306,1720493440883,-761.54999998,0.00014,2]
[331552307,1720493440895,-435.22008913,0.00014,2]
[331552308,1720493440907,-417.92799978,0.00014,2]
[331552309,1720493440920,-2851539.5654368,0.00014,2]
[331552310,1720493440936,-2012.676759,0.00014,2]
[331552311,1720493440945,-4113940.99750305,0.00014,2]
[331552312,1720493440960,-235257.66717703,0.00014,2]
[331552313,1720493440976,-78896.43625104,0.00014,2]
[331552314,1720493440989,-2063.14108,0.00014,2]
[331552418,1720493445354,-4700.57628329,0.00014,2]
[331552425,1720493550086,150.5,0.0001399,30]
[331552426,1720493550542,150.5,0.0001398,30]
[331552427,1720493551004,150.5,0.0001397,30]
[331552436,1720494596128,-393.9073856,0.00011316,2]
[331552437,1720494596161,-981.0,0.00011415,2]
[331552438,1720494596690,-119.32555781,0.00011416,2]
[331552451,1720494631714,-381.33444219,0.00011416,2]
[331552454,1720494631723,-150.0,0.000126,2]
[331552457,1720494631732,-250.0,0.000129,2]
[331552459,1720494631744,-1029.28,0.00012969,2]
[331552461,1720494631753,-169.55,0.0001302,2]
[331552463,1720494631762,-288.10238806,0.00013049,2]
[331552471,1720494635217,-404.79761194,0.00013049,2]
[331552472,1720494635236,-250.0,0.00013066,2]
[331552473,1720494635256,-355.81609236,0.00013122,2]
[331552474,1720494635272,-444.18390764,0.00013122,2]
[331552475,1720494635290,-455.81609236,0.00013205,2]
[331552476,1720494635312,-44.18390764,0.00013205,2]
[331552477,1720494635350,-1183.93091269,0.00013252,2]
[331552478,1720494635369,-420.61040831,0.00013252,2]
[331552479,1720494635384,-307.7828213,0.00013422,2]
[331552483,1720494637795,-1010.92811315,0.00013422,2]
[331552485,1720494638071,-385.59206955,0.00013422,2]
[331552486,1720494638088,-1146.0,0.00013448,2]
[331552487,1720494638104,-200.0,0.00013494,2]
[331552488,1720494638120,-300.0,0.00013499,2]
[331552489,1720494638137,-1709.18,0.000135,2]
[331552490,1720494638152,-155.58152558,0.00013516,2]
[331552491,1720494638168,-169.87,0.00013623,2]
[331552492,1720494638184,-3818.58,0.0001368,2]
[331552493,1720494638199,-999.99,0.0001368,2]
[331552494,1720494638217,-500.66,0.0001368,2]
[331552495,1720494638232,-250.0,0.00013699,2]
[331552496,1720494638250,-1500.0,0.00013699,5]
[331552497,1720494638265,-788.47,0.00013699,2]
[331552498,1720494638281,-429.01,0.00013699,2]
[331552499,1720494638296,-150.0,0.00013699,2]
[331552500,1720494638315,-300.59,0.00013699,2]
[331552501,1720494638330,-168.46,0.00013699,2]
[331552502,1720494638345,-319.33,0.00013699,2]
[331552503,1720494638360,-528.86,0.00013699,2]
[331552504,1720494638376,-151.5,0.00013699,2]
[331552505,1720494638392,-151.49,0.00013699,2]
[331552508,1720494638419,-355.12,0.00013699,2]